bitfinex/quotes_ETHUSD_20250411
["timestamp","ask_amount","ask_price","bid_price","bid_amount"]
[1744352893120,6.44554,1551.5,1551.3,5.20811358]
[1744352893322,6.44554,1551.5,1551.3,3.6968849]
[1744352893921,6.44554,1551.5,1551.4,0.23779879]
[1744352894312,6.44554,1551.5,1551.3,3.6968849]
[1744352894485,6.44554,1551.5,1551.4,0.23779879]
[1744352894886,6.44554,1551.5,1551.3,3.6968849]
[1744352895119,6.44554,1551.5,1551.4,0.23779879]
[1744352895525,7.2552,1551.6,1551.3,3.6968849]
[1744352895718,7.2552,1551.6,1551.4,0.23876721]
[1744352896024,7.2552,1551.6,1551.3,3.6968849]
[1744352896224,13.70039,1551.6,1551.4,0.23876721]
[1744352896416,13.70039,1551.6,1551.3,3.6968849]
[1744352896617,7.2552,1551.6,1551.4,0.23876721]
[1744352896926,7.2552,1551.6,1551.3,3.6968849]
[1744352897130,10.2552,1551.6,1551.5,0.23839202]
[1744352897299,11.925183,1551.6,1551.4,0.23876721]
[1744352897495,10.2552,1551.6,1551.5,0.23839202]
[1744352897911,10.2552,1551.6,1551.3,6.56285158]
[1744352898112,10.2552,1551.6,1551.5,0.23839202]
[1744352898312,10.2552,1551.6,1551.4,0.23876721]
[1744352898514,10.2552,1551.6,1551.5,0.23839202]
[1744352898917,10.2552,1551.6,1551.3,6.56285158]
[1744352899127,10.2552,1551.6,1551.5,0.23839202]
[1744352899327,11.925183,1551.6,1551.4,0.23876721]
[1744352899522,11.925183,1551.6,1551.5,0.23839202]
[1744352899928,11.925183,1551.6,1551.3,6.56285158]
[1744352900206,10.2552,1551.6,1551.4,0.23876721]
[1744352900429,6.445,1551.6,1551.3,13.00901158]
[1744352900630,6.445,1551.6,1551.4,0.23876721]
[1744352900834,6.445,1551.6,1551.3,13.00901158]
[1744352901020,6.445,1551.6,1551.4,0.23876721]
[1744352901222,6.445,1551.6,1551.3,13.00901158]
[1744352901422,6.44545,1551.5,1551.4,0.23876721]
[1744352901622,6.44545,1551.5,1551.3,3.6968849]
[1744352901834,6.44545,1551.5,1551.4,0.23876721]
[1744352902133,6.445,1551.6,1551.3,10.1430749]
[1744352902340,6.445,1551.6,1551.4,0.23876721]
[1744352902637,6.445,1551.6,1551.3,10.1430749]
[1744352902806,6.445,1551.6,1551.4,0.23876721]
[1744352903007,6.445,1551.6,1551.3,10.1430749]
[1744352903209,6.445,1551.6,1551.4,0.23876721]
[1744352903540,6.445,1551.6,1551.3,10.1430749]
[1744352903749,6.445,1551.6,1551.5,0.23839202]
[1744352903920,6.445,1551.6,1551.4,0.23876721]
[1744352904120,6.445,1551.6,1551.5,0.23839202]
[1744352904532,6.445,1551.6,1551.3,10.1430749]
[1744352904748,6.445,1551.6,1551.5,0.23839202]
[1744352904918,6.445,1551.6,1551.4,1.01676721]
[1744352905119,6.445,1551.6,1551.5,0.23839202]
[1744352905541,12.89019,1551.6,1551.3,13.80154158]
[1744352905742,12.89019,1551.6,1551.5,0.23839202]
[1744352906048,7.815799,1551.6,1551.5,0.23839202]
[1744352906347,6.445,1551.6,1551.3,13.80154158]
[1744352906519,6.445,1551.6,1551.5,0.23839202]
[1744352906714,0.8178,1551.7,1551.4,6.68424721]
[1744352906947,9.44422,1551.8,1551.5,1.06359202]
[1744352907150,17.82573731,1552.0,1551.7,2.86596668]
[1744352907452,17.82573731,1552.0,1551.8,0.23712297]
[1744352907749,17.82573731,1552.0,1551.7,3.69906668]
[1744352908166,11.38239731,1552.0,1551.7,0.8331]
[1744352908371,6.4439,1551.9,1551.5,13.82373158]
[1744352908531,14.02607973,1551.9,1551.8,0.23726674]
[1744352908739,14.02607973,1551.9,1551.5,20.26890158]
[1744352908937,12.88784,1551.9,1551.8,0.23726674]
[1744352909241,12.88784,1551.9,1551.5,20.26890158]
[1744352909434,12.88784,1551.9,1551.6,0.23801688]
[1744352909636,6.4439,1551.9,1551.6,0.23801688]
[1744352910761,6.4439,1551.9,1551.6,6.68296688]
[1744352911143,13.0063,1552.0,1551.6,6.68276688]
[1744352911769,13.0063,1552.0,1551.7,6.44454]
[1744352912159,19.4499,1552.0,1551.8,0.23643665]
[1744352912547,13.0063,1552.0,1551.7,10.1414149]
[1744352912747,13.0063,1552.0,1551.9,0.23606166]
[1744352912936,15.028536,1552.0,1551.8,0.23643665]
[1744352913148,15.028536,1552.0,1551.9,0.23606166]
[1744352913553,15.028536,1552.0,1551.7,10.1414149]
[1744352913852,19.44992,1552.0,1551.8,0.23643665]
[1744352914649,6.44371,1551.9,1551.8,0.23643665]
[1744352914865,6.44371,1551.9,1551.7,3.6968849]
[1744352915053,6.44371,1551.9,1551.8,0.23643665]
[1744352915254,6.44371,1551.9,1551.7,5.20778573]
[1744352915454,6.44371,1551.9,1551.8,0.23643665]
[1744352915749,6.44371,1551.9,1551.7,5.20778573]
[1744352916074,6.44371,1551.9,1551.8,0.23643665]
[1744352916374,8.388711,1551.9,1551.7,5.20778573]
[1744352916670,8.388711,1551.9,1551.8,0.23643665]
[1744352916870,8.388711,1551.9,1551.7,5.20778573]
[1744352917067,8.388711,1551.9,1551.8,0.23643665]
[1744352917277,14.832631,1551.9,1551.7,5.20778573]
[1744352917451,15.634231,1551.9,1551.8,0.23643665]
[1744352917643,15.634231,1551.9,1551.7,5.20778573]
[1744352917840,8.8091431,1551.8,1551.7,3.6968849]
[1744352918041,11.8091431,1551.8,1551.7,3.6968849]
[1744352918242,6.44515,1551.6,1551.2,12.42135573]
[1744352918560,13.71238,1551.6,1551.2,12.42135573]
[1744352918764,13.71238,1551.6,1551.2,18.86777573]
[1744352919363,13.71238,1551.6,1551.2,17.3568749]
[1744352919576,13.71226,1551.6,1551.2,10.9104049]
[1744352919746,7.26705,1551.6,1551.2,17.3568249]
[1744352920369,13.71226,1551.6,1551.2,17.3568249]
[1744352921343,7.26705,1551.6,1551.2,17.3568249]
[1744352923273,7.26705,1551.6,1551.3,0.23831236]
[1744352923479,13.71224,1551.6,1551.3,0.23831236]
[1744352925197,7.26705,1551.6,1551.3,0.23831236]
[1744352925991,0.8219,1551.6,1551.3,6.68439236]
[1744352926161,6.44462,1551.7,1551.4,7.23566]
[1744352926366,6.44462,1551.7,1551.5,0.23839202]
[1744352926599,12.88939,1551.7,1551.5,0.23839202]
[1744352929003,6.44496,1551.6,1551.5,0.23839202]
[1744352931603,6.44496,1551.6,1551.3,15.75804187]
[1744352931794,6.44496,1551.6,1551.4,0.23876721]
[1744352931972,6.44496,1551.6,1551.3,9.31198187]
[1744352932174,6.44496,1551.6,1551.4,0.23876721]
[1744352932380,6.44462,1551.7,1551.3,9.31198187]
[1744352932583,6.44462,1551.7,1551.4,7.45650721]
[1744352933217,6.44396,1551.9,1551.5,9.31098187]
[1744352933381,12.05223731,1552.0,1551.6,7.45037688]
[1744352933574,18.49582731,1552.0,1551.6,13.89515688]
[1744352933774,18.49582731,1552.0,1551.6,7.45037688]
[1744352934077,3.0,1551.9,1551.6,7.45037688]
[1744352934805,3.0,1551.9,1551.7,2.86596187]
[1744352935003,3.0,1551.9,1551.8,0.23726674]
[1744352935195,9.44371,1551.9,1551.8,0.23726674]
[1744352935696,3.0,1551.9,1551.5,7.33024677]
[1744352935897,3.37895,1551.9,1551.5,7.33024677]
[1744352937315,0.8179,1551.8,1551.5,7.33024677]
[1744352937516,0.8179,1551.8,1551.6,0.23801688]
[1744352939093,0.8179,1551.8,1551.3,0.7861]
[1744352939287,0.37895,1551.9,1551.4,0.23876721]
[1744352939288,7.2993,1551.7,1551.4,0.23876721]
[1744352939598,7.2993,1551.7,1551.5,0.23839202]
[1744352939599,8.02923,1551.7,1551.5,0.23839202]
[1744352939790,8.02923,1551.7,1551.2,3.6968849]
[1744352939990,8.02923,1551.7,1551.3,0.23914245]
[1744352940191,0.802923,1551.6,1551.3,0.23914245]
[1744352941136,0.7905,1551.5,1551.3,0.23914245]
[1744352941529,0.7905,1551.5,1550.9,7.35744677]
[1744352941699,1.3405,1551.5,1551.4,0.23933431]
[1744352941889,0.7935,1551.4,1550.8,4.49619443]
[1744352942202,0.7935,1551.4,1550.9,3.10854006]
[1744352942724,0.7935,1551.4,1550.9,0.24257819]
[1744352942924,6.549,1551.3,1550.9,3.10854006]
[1744352943101,6.549,1551.3,1550.9,2.86596187]
[1744352943422,6.549,1551.3,1551.0,0.24220265]
[1744352943625,7.28325,1551.3,1551.0,0.24220265]
[1744352944625,6.549,1551.3,1551.0,0.24220265]
[1744352944797,6.549,1551.3,1551.0,0.99640265]
[1744352945328,6.549,1551.3,1551.0,0.24220265]
[1744352945628,0.7956,1551.2,1551.0,0.24220265]
[1744352945834,6.549,1551.3,1550.9,2.86596187]
[1744352945994,6.549,1551.3,1551.0,0.24220265]
[1744352946697,6.549,1551.3,1551.0,1.03470265]
[1744352947137,6.549,1551.3,1551.0,0.24220265]
[1744352947587,6.549,1551.3,1551.0,3.93908755]
[1744352949508,0.7845,1551.2,1551.0,3.93908755]
[1744352949825,1.51785,1551.2,1551.0,3.93908755]
[1744352951827,6.549,1551.3,1551.0,4.75528755]
[1744352957743,3.798,1551.5,1551.2,0.7985]
[1744352958611,6.551,1551.6,1551.2,0.7985]
[1744352959052,6.551,1551.6,1551.3,2.86596187]
[1744352959468,6.551,1551.6,1551.3,3.10562472]
[1744352961009,0.8183,1551.7,1551.3,3.10562472]
[1744352961204,0.8183,1551.7,1551.3,2.86596187]
[1744352964143,0.8183,1551.7,1551.2,0.7985]
[1744352966049,3.8191,1551.8,1551.2,0.7985]
[1744352966550,3.8191,1551.8,1551.4,0.8234]
[1744352968157,3.8191,1551.8,1551.4,4.5202849]
[1744352971255,3.8191,1551.8,1551.4,3.6968849]
[1744352971451,3.0,1551.8,1551.4,3.6968849]
[1744352971633,0.7876,1551.7,1551.4,3.6968849]
[1744352972652,3.7998,1551.6,1551.0,0.7927]
[1744352972972,0.7998,1551.5,1551.1,0.23920228]
[1744352973130,3.0,1551.4,1551.1,0.23920228]
[1744352974544,3.0,1551.4,1551.2,0.7738]
[1744352975966,3.0,1551.4,1551.0,3.67056187]
[1744352976357,3.0,1551.4,1551.1,0.21928751]
[1744352977631,7.3418,1551.5,1551.1,0.21928751]
[1744352977836,0.7869,1551.4,1551.1,0.21928751]
[1744352983337,7.3038,1551.5,1551.1,0.21928751]
[1744352990294,6.542,1551.5,1551.2,0.7772]
[1744352996686,6.542,1551.5,1551.1,3.6968849]
[1744352997006,6.542,1551.5,1551.2,0.22043022]
[1744352997462,6.542,1551.5,1551.1,3.6968849]
[1744352997666,3.7612,1551.4,1551.2,0.22043022]
[1744352997884,0.37612,1551.3,1551.1,3.6968849]
[1744352998091,0.37612,1551.3,1551.2,0.22035828]
[1744352998381,1.13732,1551.3,1551.2,0.22035828]
[1744353000261,1.68732,1551.3,1551.2,0.07401054]
[1744353000571,2.00117111,1551.3,1551.2,0.07401054]
[1744353000755,60.27817111,1551.3,1551.2,0.07401054]
[1744353002286,59.96432,1551.3,1551.2,0.07401054]
[1744353004193,60.28154033,1551.3,1551.2,0.07401054]
[1744353005811,64.12289989,1551.3,1551.2,0.07401054]
[1744353007279,63.80567956,1551.3,1551.2,0.07401054]
[1744353008724,59.96432,1551.3,1551.2,0.07401054]
[1744353009433,4.68732,1551.3,1551.2,0.07401054]
[1744353009722,4.80911193,1551.4,1551.2,0.90201054]
[1744353010076,3.0,1551.3,1551.2,0.90201054]
[1744353011687,4.80911193,1551.4,1551.2,0.90201054]
[1744353011891,3.0,1551.3,1551.2,0.90201054]
[1744353012414,1.67104769,1551.7,1551.2,0.90201054]
[1744353012415,11.34611193,1551.6,1551.3,0.7843]
[1744353012819,3.0,1551.5,1551.3,0.7843]
[1744353013419,11.34611193,1551.6,1551.3,0.7843]
[1744353013800,11.34611193,1551.6,1551.4,0.7933]
[1744353015222,6.537,1551.6,1551.4,0.7933]
[1744353015389,6.537,1551.6,1551.4,0.36592619]
[1744353015587,6.537,1551.6,1551.5,0.7599]
[1744353017606,6.537,1551.6,1551.3,0.754]
[1744353017925,64.825,1551.9,1551.4,0.2220931]
[1744353018119,64.825,1551.9,1551.4,0.787]
[1744353018421,6.536,1551.9,1551.4,0.787]
[1744353018591,3.0,1551.8,1551.4,0.787]
[1744353018790,3.0,1551.8,1551.5,0.22186176]
[1744353019023,3.0,1551.8,1551.6,0.7999]
[1744353019391,3.0,1551.8,1551.7,0.22132725]
[1744353025622,6.536,1551.9,1551.8,0.8157]
[1744353026297,6.536,1551.9,1551.5,0.7671]
[1744353029594,3.0,1551.8,1551.5,0.7671]
[1744353030034,3.0,1551.8,1551.6,0.21884479]
[1744353031831,6.536,1551.9,1551.6,0.21884479]
[1744353031996,6.536,1551.9,1551.7,0.7603]
[1744353033711,6.536,1551.9,1551.7,3.62626187]
[1744353033905,6.536,1551.9,1551.8,0.21683699]
[1744353039436,12.88695,1552.0,1551.8,0.21683699]
[1744353039637,6.44345,1552.0,1551.8,0.21683699]
[1744353039944,12.88709,1552.0,1551.8,0.21683699]
[1744353040537,12.88705,1552.0,1551.8,0.21683699]
[1744353041136,10.26121,1551.9,1551.8,0.21683699]
[1744353041543,9.44444,1551.8,1551.6,3.6968849]
[1744353041837,15.88888,1551.8,1551.6,3.6968849]
[1744353044440,15.88888,1551.8,1551.5,0.7606]
[1744353044862,6.44459,1551.7,1551.5,0.7606]
[1744353045208,12.88947,1551.7,1551.5,0.7606]
[1744353045638,6.44509,1551.6,1551.4,3.6968849]
[1744353045946,6.44509,1551.6,1551.4,4.4976849]
[1744353048547,6.44509,1551.6,1551.4,0.8008]
[1744353048849,6.44579,1551.4,1551.3,0.7744]
[1744353049046,6.44579,1551.4,1551.1,7.33724677]
[1744353049246,6.44579,1551.4,1551.1,3.64036187]
[1744353049412,6.44579,1551.4,1551.1,0.7744]
[1744353049749,0.8288,1551.5,1551.1,0.7744]
[1744353049750,6.44638,1551.3,1551.1,0.7744]
[1744353049949,6.44694,1551.2,1551.0,0.7657]
[1744353050114,6.44786,1550.9,1550.8,0.00470953]
[1744353050453,7.27306,1550.9,1550.8,0.00470953]
[1744353050815,10.27306,1550.9,1550.8,0.00470953]
[1744353063660,7.24298,1551.3,1550.8,6.45297953]
[1744353063849,6.44726,1551.1,1550.9,0.7548]
[1744353064050,12.89457,1551.1,1550.9,0.7548]
[1744353064365,12.89459,1551.1,1550.9,0.7548]
[1744353064564,6.44726,1551.1,1550.9,0.7548]
[1744353064760,6.44745,1551.0,1550.9,0.7548]
[1744353065133,6.44745,1551.0,1550.9,0.97610749]
[1744353065863,6.44745,1551.0,1550.9,0.22130749]
[1744353066065,9.44668,1551.2,1550.9,0.22130749]
[1744353066359,6.44593,1551.4,1551.1,0.7942]
[1744353066866,3.0,1551.3,1551.2,0.22142459]
[1744353067456,4.80911193,1551.5,1551.2,6.66779459]
[1744353067856,4.80911193,1551.5,1551.3,0.8189]
[1744353068230,11.25453193,1551.5,1551.3,0.8189]
[1744353068781,6.44542,1551.5,1551.3,0.8189]
[1744353068985,6.44542,1551.5,1551.4,0.22067416]
[1744353069337,6.44542,1551.5,1551.3,0.8189]
[1744353069537,6.44542,1551.5,1551.4,0.22067416]
[1744353069748,6.44542,1551.5,1551.3,0.8189]
[1744353069961,6.44542,1551.5,1551.4,0.22067416]
[1744353070163,6.44635,1551.3,1551.1,0.7635]
[1744353070335,12.89287,1551.3,1551.1,0.7635]
[1744353070747,6.44635,1551.3,1551.1,0.7635]
[1744353070947,12.89294,1551.3,1551.1,0.7635]
[1744353071265,6.44635,1551.3,1551.1,0.7635]
[1744353071976,6.44585,1551.4,1551.1,0.7635]
[1744353072182,6.44544,1551.5,1551.2,6.44661]
[1744353072538,12.89113,1551.5,1551.1,7.21049]
[1744353072741,6.44544,1551.5,1551.1,13.65733]
[1744353073167,12.89103,1551.5,1551.1,13.65733]
[1744353073658,12.89103,1551.5,1551.1,7.21034]
[1744353075472,12.89103,1551.5,1551.1,13.65719]
[1744353075646,6.44581,1551.4,1551.1,7.21034]
[1744353076277,12.89115,1551.5,1551.1,13.65724]
[1744353077251,12.89115,1551.5,1551.1,7.21034]
[1744353077870,12.89115,1551.5,1551.1,13.65723]
[1744353078474,12.89115,1551.5,1551.1,7.21034]
[1744353078676,6.44587,1551.4,1551.1,7.21034]
[1744353080185,14.857545,1551.5,1551.2,0.22014417]
[1744353080682,8.411815,1551.5,1551.2,0.22014417]
[1744353080882,6.44544,1551.5,1551.2,0.22014417]
[1744353081485,12.89105,1551.5,1551.2,0.22014417]
[1744353082096,6.4462,1551.3,1551.2,0.22014417]
[1744353082301,7.20715,1551.4,1551.2,0.22014417]
[1744353084006,6.44595,1551.4,1551.2,0.22014417]
[1744353084156,8.03509,1551.4,1551.2,0.22014417]
[1744353084357,9.44545,1551.5,1551.2,0.22014417]
[1744353084597,9.44545,1551.5,1551.2,6.66661417]
[1744353084900,9.44545,1551.5,1551.3,0.7667]
[1744353085461,9.44545,1551.5,1551.4,0.21939374]
[1744353085687,9.44545,1551.5,1551.3,0.7667]
[1744353085885,9.44545,1551.5,1551.4,0.21939374]
[1744353086192,9.44545,1551.5,1551.3,0.7667]
[1744353086367,9.44545,1551.5,1551.4,0.21939374]
[1744353086570,11.711755,1551.5,1551.4,0.21939374]
[1744353086768,18.157375,1551.5,1551.3,0.7667]
[1744353086970,18.157375,1551.5,1551.4,0.21939374]
[1744353087199,18.157375,1551.5,1551.2,0.788]
[1744353087357,15.89107,1551.5,1551.4,0.21939374]
[1744353087556,9.44545,1551.5,1551.2,7.23456]
[1744353087762,15.89114,1551.5,1551.3,0.21976893]
[1744353088593,15.89114,1551.5,1551.2,0.788]
[1744353088891,6.4462,1551.3,1551.0,17.4025949]
[1744353089998,6.4462,1551.3,1551.0,17.4025049]
[1744353090297,6.4462,1551.3,1551.0,10.9551949]
[1744353092074,6.4462,1551.3,1551.0,17.4024849]
[1744353094409,0.2496,1551.6,1551.4,6.44556]
[1744353094564,0.2496,1551.6,1551.4,7.23776]
[1744353095063,0.2496,1551.6,1551.5,6.44537]
[1744353095263,0.2496,1551.6,1551.5,6.66578557]
[1744353100679,0.2496,1551.6,1551.5,0.22041557]
[1744353102400,0.2496,1551.6,1551.5,6.66578557]
[1744353102771,1.043,1551.6,1551.5,0.22041557]
[1744353102970,7.48796,1551.6,1551.5,0.22041557]
[1744353103181,7.48796,1551.6,1551.3,3.6968849]
[1744353103373,7.48796,1551.6,1551.3,10.1430649]
[1744353103595,7.48796,1551.6,1551.4,0.22122225]
[1744353103809,7.48796,1551.6,1551.3,10.1430649]
[1744353104303,7.48796,1551.6,1551.4,0.22107843]
[1744353104505,8.881213,1551.6,1551.4,0.22107843]
[1744353104706,8.881213,1551.6,1551.3,10.1430649]
[1744353104905,7.48796,1551.6,1551.5,0.22055938]
[1744353105205,7.48796,1551.6,1551.4,0.22093461]
[1744353105406,7.48796,1551.6,1551.5,0.22055938]
[1744353105779,7.48796,1551.6,1551.3,10.1430649]
[1744353105979,7.48796,1551.6,1551.5,0.21986746]
[1744353106205,8.881213,1551.6,1551.5,0.21986746]
[1744353106510,8.881213,1551.6,1551.3,6.44618]
[1744353106689,7.48796,1551.6,1551.5,0.21986746]
[1744353106879,7.48796,1551.6,1551.3,6.44618]
[1744353107080,7.48796,1551.6,1551.4,0.2192363]
[1744353107407,7.48796,1551.6,1551.3,6.44618]
[1744353107575,7.48796,1551.6,1551.4,0.21966756]
[1744353107779,8.881213,1551.6,1551.4,0.21966756]
[1744353108009,8.881213,1551.6,1551.5,0.21914858]
[1744353108510,8.881213,1551.6,1551.5,0.21900483]
[1744353108911,8.881213,1551.6,1551.3,6.44618]
[1744353109112,7.48796,1551.6,1551.5,0.21886109]
[1744353109283,7.48796,1551.6,1551.4,0.21938]
[1744353109480,7.48796,1551.6,1551.3,6.44618]
[1744353109783,13.93311,1551.6,1551.4,0.21938]
[1744353110207,13.93311,1551.6,1551.2,17.3789549]
[1744353110712,13.93311,1551.6,1551.3,0.21997088]
[1744353111009,8.881271,1551.6,1551.3,0.21997088]
[1744353111210,0.2496,1551.6,1551.5,6.44537]
[1744353111577,0.2496,1551.6,1551.5,6.66437483]
[1744353112108,0.2496,1551.6,1551.5,0.21900483]
[1744353114085,0.2496,1551.6,1551.5,10.3043367]
[1744353114710,0.2496,1551.6,1551.5,14.0012216]
[1744353116005,0.2496,1551.6,1551.5,11.13525973]
[1744353116320,0.2496,1551.6,1551.5,3.91588973]
[1744353117627,1.0567,1551.6,1551.5,0.21900483]
[1744353117936,1.0567,1551.6,1551.1,13.00973677]
[1744353117937,6.44589,1551.4,1551.1,10.9452749]
[1744353118141,6.4463,1551.3,1551.1,4.4983849]
[1744353118310,6.4463,1551.3,1551.1,3.6968849]
[1744353118930,6.44768,1551.0,1550.8,3.6968849]
[1744353119138,6.44768,1551.0,1550.7,0.7664]
[1744353119303,6.44667,1551.2,1550.9,6.44785]
[1744353119927,12.89355,1551.2,1550.8,9.31400187]
[1744353120128,6.44667,1551.2,1550.8,9.31399187]
[1744353120444,6.44555,1551.5,1551.1,0.7664]
[1744353120646,6.44555,1551.5,1551.1,7.21329]
[1744353121735,6.44555,1551.5,1551.1,13.66008]
[1744353122046,13.99979,1551.6,1551.3,6.4462]
[1744353122229,7.5548,1551.6,1551.3,6.4462]
[1744353122546,6.7556,1551.6,1551.3,6.4462]
[1744353122842,0.2496,1551.6,1551.3,6.4462]
[1744353123222,0.2496,1551.6,1551.3,6.44596]
[1744353123423,6.69457,1551.6,1551.3,6.44596]
[1744353124314,6.69457,1551.6,1551.2,15.75914187]
[1744353124941,6.69457,1551.6,1551.3,6.44614]
[1744353125243,0.2496,1551.6,1551.3,6.66811636]
[1744353125463,0.2496,1551.6,1551.4,0.8161]
[1744353125742,0.2496,1551.6,1551.3,3.91886126]
[1744353125743,16.89576,1551.6,1551.5,0.2210101]
[1744353126122,6.44551,1551.5,1551.2,0.8161]
[1744353126449,12.89123,1551.5,1551.1,9.31284187]
[1744353126814,6.44551,1551.5,1551.1,15.75972187]
[1744353127014,6.44551,1551.5,1551.1,9.31284187]
[1744353127315,12.8912,1551.5,1551.1,9.31284187]
[1744353128244,12.790476,1551.6,1551.2,6.44635]
[1744353128419,10.4503,1551.6,1551.2,12.89277]
[1744353128617,10.4503,1551.6,1551.2,6.44635]
[1744353128862,16.8955,1551.6,1551.2,6.44635]
[1744353129233,19.23565,1551.6,1551.2,6.44635]
[1744353129421,12.89129,1551.5,1551.1,9.31293187]
[1744353129819,12.79047,1551.6,1551.1,2.86596187]
[1744353130020,3.2496,1551.6,1551.3,10.12670187]
[1744353130246,0.2496,1551.6,1551.4,6.44565]
[1744353131048,0.2496,1551.6,1551.3,10.12670187]
[1744353131853,6.69461,1551.6,1551.3,10.12670187]
[1744353132252,6.69461,1551.6,1551.3,3.68056187]
[1744353132456,7.114851,1551.5,1551.2,7.21568]
[1744353132750,6.44539,1551.5,1551.2,7.21568]
[1744353133533,12.891,1551.5,1551.1,12.8939]
[1744353133918,1.0554,1551.6,1551.0,10.9243749]
[1744353133919,0.7785,1551.3,1551.0,10.9243749]
[1744353134125,6.44662,1551.2,1550.9,13.77303677]
[1744353134451,6.44723,1551.1,1550.7,13.34699925]
[1744353134632,0.8104,1551.0,1550.7,9.65011435]
[1744353134834,0.8104,1551.0,1550.7,16.09860435]
[1744353135568,7.22863,1551.1,1550.7,16.09860435]
[1744353136395,7.22863,1551.1,1550.8,6.44809]
[1744353136652,0.7814,1551.1,1550.8,12.89618]
[1744353137022,0.7814,1551.1,1550.9,6.44773]
[1744353137228,6.44633,1551.3,1550.9,16.55967187]
[1744353137229,7.24983,1551.3,1550.9,16.55967187]
[1744353137659,13.75683,1551.3,1550.9,16.55967187]
[1744353138124,20.20325,1551.3,1550.9,16.55967187]
[1744353138324,20.20325,1551.3,1550.9,10.11194187]
[1744353138750,22.523575,1551.3,1550.9,10.11194187]
[1744353139121,22.523575,1551.3,1550.9,16.55966187]
[1744353139326,22.523575,1551.3,1550.9,10.11194187]
[1744353140057,22.523575,1551.3,1551.0,0.22300147]
[1744353143676,5.87741193,1551.6,1551.1,3.62416187]
[1744353143860,5.05871193,1551.6,1551.5,6.44537]
[1744353144069,5.05871193,1551.6,1551.5,6.66649473]
[1744353144898,0.2496,1551.6,1551.5,6.66649473]
[1744353158278,0.2496,1551.6,1551.5,0.22112473]
[1744353158487,1.0132,1551.6,1551.5,0.22112473]
[1744353159662,0.2496,1551.6,1551.5,7.44139473]
[1744353160059,0.2496,1551.6,1551.5,11.13827963]
[1744353160266,12.13551193,1552.4,1552.2,6.44228]
[1744353160467,12.13551193,1552.4,1552.2,12.88453]
[1744353160678,4.80911193,1552.4,1552.3,0.21171461]
[1744353161569,4.80911193,1552.4,1552.2,6.44245]
[1744353161898,4.80911193,1552.4,1552.3,0.21189408]
[1744353162404,6.44084,1552.6,1552.3,0.21189408]
[1744353163092,13.47076965,1552.7,1552.3,6.65371408]
[1744353163276,7.03037965,1552.7,1552.4,6.44162]
[1744353163476,13.47102965,1552.7,1552.5,0.21092928]
[1744353163697,15.46213662,1552.7,1552.3,6.44182]
[1744353164003,21.90277662,1552.7,1552.4,0.21137574]
[1744353164429,15.46212662,1552.7,1552.4,0.21137574]
[1744353167415,9.24924697,1552.7,1552.4,0.21137574]
[1744353167773,9.24924697,1552.7,1552.4,6.65296574]
[1744353167774,2.80860697,1552.7,1552.4,6.65296574]
[1744353167972,0.8175,1552.7,1552.4,6.65296574]
[1744353169085,0.8175,1552.7,1552.4,6.65283574]
[1744353169893,7.25792,1552.7,1552.4,6.65283574]
[1744353170524,0.8175,1552.7,1552.4,9.51879761]
[1744353171004,7.25795,1552.7,1552.4,3.07733761]
[1744353171380,13.6987,1552.7,1552.4,3.07733761]
[1744353171580,13.69857,1552.7,1552.4,3.07733761]
[1744353171875,7.25795,1552.7,1552.4,9.51893761]
[1744353172293,0.8175,1552.7,1552.4,15.96036761]
[1744353172819,3.0,1552.8,1552.5,7.238]
[1744353173312,3.0,1552.8,1552.6,0.20932731]
[1744353174383,20.17382,1552.9,1552.6,0.20932731]
[1744353174590,7.24404,1552.9,1552.6,0.20932731]
[1744353175114,13.68382,1552.9,1552.6,0.20932731]
[1744353176209,7.24404,1552.9,1552.6,0.20932731]
[1744353176412,3.0,1553.0,1552.6,3.07528918]
[1744353176615,7.2607,1553.1,1552.8,10.05639187]
[1744353177114,7.2607,1553.1,1552.9,0.20430109]
[1744353177811,0.7717,1553.1,1552.9,0.20430109]
[1744353178489,7.21049,1553.1,1552.9,0.20430109]
[1744353178894,6.43915,1553.0,1552.7,6.44033]
[1744353179095,6.43915,1553.0,1552.8,0.20460381]
[1744353179618,7.21049,1553.1,1552.8,0.20460381]
[1744353180214,7.21049,1553.1,1552.8,6.64457381]
[1744353180424,6.43879,1553.1,1552.8,10.33423568]
[1744353180597,12.92732,1553.2,1552.8,16.77406568]
[1744353180987,19.36584,1553.2,1552.8,10.33409568]
[1744353182744,6.43874,1553.1,1552.8,10.33409568]
[1744353183519,6.43832,1553.2,1552.8,10.33408568]
[1744353183689,0.7946,1553.3,1553.0,9.30493187]
[1744353183884,0.05,1553.4,1553.1,6.64213055]
[1744353184110,0.05,1553.4,1553.3,0.7765]
[1744353184416,0.05,1553.4,1553.3,0.97898051]
[1744353184620,0.05,1553.4,1553.3,0.20248051]
[1744353185018,0.05,1553.4,1553.3,6.64038051]
[1744353185815,0.05,1553.4,1553.3,10.33726541]
[1744353186324,0.05,1553.4,1553.3,13.99912728]
[1744353187031,0.05,1553.4,1553.3,15.03343268]
[1744353188318,0.05,1553.4,1553.3,18.03343268]
[1744353188632,17.71990072,1554.2,1553.9,0.7707]
[1744353188946,3.0,1554.1,1554.0,0.1921689]
[1744353189707,4.79869072,1554.2,1554.0,0.1921689]
[1744353190128,11.23290072,1554.2,1554.0,0.1921689]
[1744353190429,6.43459,1554.1,1554.0,0.1921689]
[1744353190597,7.22429,1554.1,1554.0,0.1921689]
[1744353190803,6.43503,1554.0,1553.7,0.7532]
[1744353191129,6.43542,1553.9,1553.8,0.19384853]
[1744353191327,6.43503,1554.0,1553.6,20.21553677]
[1744353191500,7.22434,1554.1,1553.7,6.63054574]
[1744353191700,7.22434,1554.1,1553.7,13.06658574]
[1744353191899,7.22434,1554.1,1553.7,6.63040574]
[1744353191900,13.65917,1554.1,1553.7,6.63040574]
[1744353192123,7.22434,1554.1,1553.7,6.63040574]
[1744353192327,0.7897,1554.1,1553.8,9.30144187]
[1744353192531,14.36898007,1554.2,1553.9,0.18882367]